bitfinex/quotes_BTCUSD_20260126
["timestamp","ask_amount","ask_price","bid_price","bid_amount"]
[1769455927465,0.01133208,88245.0,88221.0,0.02454658]
[1769455927683,0.00098772,88242.0,88221.0,0.02454658]
[1769455928241,0.00098772,88241.0,88221.0,0.02454658]
[1769455930100,0.00098772,88239.0,88221.0,0.02454658]
[1769455930498,0.03,88238.0,88221.0,0.02454658]
[1769455930658,0.03,88230.0,88220.0,0.0002359]
[1769455930859,0.00098772,88229.0,88220.0,0.0002359]
[1769455931837,0.03098772,88229.0,88220.0,0.0002359]
[1769455932410,0.01133349,88234.0,88220.0,0.0002359]
[1769455932411,0.01133452,88226.0,88220.0,0.0002359]
[1769455932614,0.0007937,88224.0,88220.0,3.992e-05]
[1769455933701,0.0007937,88223.0,88220.0,3.992e-05]
[1769455933838,0.01133414,88229.0,88208.0,0.02499999]
[1769455933839,0.03,88220.0,88208.0,0.02499999]
[1769455934056,0.03,88220.0,88201.0,0.02499999]
[1769455934057,0.03,88213.0,88201.0,0.02499999]
[1769455935073,0.03,88212.0,88201.0,0.02499999]
[1769455936089,0.03,88211.0,88201.0,0.02499999]
[1769455937250,0.03,88210.0,88201.0,0.02499999]
[1769455938300,0.03,88214.0,88201.0,0.02499999]
[1769455939618,0.03,88205.0,88197.0,0.00018]
[1769455940726,0.129,88204.0,88197.0,0.00018]
[1769455940926,0.129,88204.0,88186.0,0.19924019]
[1769455941127,0.39059736,88207.0,88186.0,0.19924019]
[1769455941128,0.1288218,88202.0,88186.0,0.19924019]
[1769455941329,0.03,88199.0,88186.0,0.19924019]
[1769455942431,0.03,88198.0,88186.0,0.17424]
[1769455942629,0.03,88198.0,88190.0,0.69655363]
[1769455942787,0.03,88198.0,88191.0,0.02500019]
[1769455943376,0.03,88205.0,88191.0,0.02500019]
[1769455944098,0.03,88205.0,88191.0,0.69655363]
[1769455944302,0.03,88205.0,88192.0,0.02500019]
[1769455944661,0.03,88204.0,88192.0,0.02500019]
[1769455944861,0.03,88204.0,88186.0,0.17424]
[1769455944862,0.01133516,88221.0,88195.0,0.02500019]
[1769455945067,0.3792604,88220.0,88199.0,0.02500019]
[1769455945271,0.39059569,88220.0,88202.0,0.69655363]
[1769455945406,0.3792604,88220.0,88203.0,0.02500019]
[1769455945606,0.03,88219.0,88203.0,0.02500019]
[1769455946151,0.03,88216.0,88203.0,0.02500019]
[1769455946389,0.1288218,88216.0,88203.0,0.02500019]
[1769455946817,0.03,88203.0,88184.0,0.02500019]
[1769455947055,0.03,88199.0,88187.0,0.02500019]
[1769455947261,0.03,88199.0,88188.0,0.02500019]
[1769455948094,0.03,88198.0,88188.0,0.02500019]
[1769455949080,0.03,88197.0,88188.0,0.02500019]
[1769455949291,0.0988218,88204.0,88188.0,0.02500019]
[1769455950094,0.03,88203.0,88188.0,0.02500019]
[1769455950295,0.03,88203.0,88189.0,0.02500019]
[1769455950494,0.03,88203.0,88191.0,0.02500019]
[1769455950998,0.03,88202.0,88191.0,0.02500019]
[1769455952185,0.03,88201.0,88191.0,0.02500019]
[1769455953210,0.16684381,88207.0,88191.0,0.02500019]
[1769455953211,0.03,88200.0,88191.0,0.02500019]
[1769455953415,0.03,88200.0,88182.0,0.0002447]
[1769455953626,0.03,88191.0,88182.0,0.0002447]
[1769455954001,0.03,88189.0,88182.0,0.0002447]
[1769455954655,0.03,88187.0,88182.0,0.0002447]
[1769455954865,0.03,88185.0,88182.0,0.0002447]
[1769455955082,0.14033979,88185.0,88176.0,0.04472776]
[1769455955287,0.129,88185.0,88176.0,0.04472776]
[1769455955527,0.03,88185.0,88176.0,0.04472776]
[1769455955760,0.03,88185.0,88176.0,0.06972795]
[1769455955980,0.03,88191.0,88177.0,0.02500019]
[1769455956432,0.03,88191.0,88178.0,0.69655363]
[1769455956863,0.099,88195.0,88178.0,0.69655363]
[1769455956864,0.03,88190.0,88178.0,0.69655363]
[1769455957899,0.03,88189.0,88178.0,0.69655363]
[1769455958996,0.03,88188.0,88178.0,0.69655363]
[1769455960120,0.03,88187.0,88178.0,0.69655363]
[1769455960355,0.03,88187.0,88177.0,0.02500019]
[1769455961251,0.03,88192.0,88177.0,0.02500019]
[1769455962585,0.03,88191.0,88177.0,0.02500019]
[1769455963450,0.03,88190.0,88177.0,0.02500019]
[1769455963858,0.03,88190.0,88177.0,0.69655363]
[1769455964063,0.03,88190.0,88178.0,0.02484009]
[1769455964475,0.03,88189.0,88178.0,0.02484009]
[1769455964883,0.03,88189.0,88179.0,0.69655363]
[1769455965119,0.099,88209.0,88189.0,0.70655363]
[1769455965330,0.12454544,88208.0,88190.0,0.02484009]
[1769455965533,0.03,88207.0,88190.0,0.69655363]
[1769455965736,0.03,88207.0,88191.0,0.72139372]
[1769455966053,0.09802213,88207.0,88191.0,0.72139372]
[1769455966251,0.04133735,88204.0,88191.0,0.02484009]
[1769455966497,0.03,88200.0,88191.0,0.02484009]
[1769455967428,0.03,88198.0,88191.0,0.02484009]
[1769455967635,0.03,88189.0,88173.0,0.02478562]
[1769455967841,0.03,88189.0,88173.0,0.72133925]
[1769455968038,0.03,88189.0,88174.0,0.02478562]
[1769455968261,0.03,88189.0,88175.0,0.02478562]
[1769455968675,0.04133928,88189.0,88175.0,0.02478562]
[1769455968850,0.03,88187.0,88175.0,0.02478562]
[1769455969458,0.03,88185.0,88175.0,0.02478562]
[1769455969638,0.03,88185.0,88169.0,0.02285137]
[1769455969823,0.03,88183.0,88169.0,0.02285137]
[1769455970025,0.03,88183.0,88170.0,0.6848767]
[1769455970244,0.03,88183.0,88171.0,0.02285137]
[1769455970854,0.03,88182.0,88171.0,0.02285137]
[1769455972039,0.03,88183.0,88171.0,0.02285137]
[1769455972466,0.03,88178.0,88171.0,0.02285137]
[1769455972688,0.03,88178.0,88167.0,0.0002447]
[1769455973645,0.03,88177.0,88167.0,0.0002447]
[1769455974179,0.03,88177.0,88167.0,0.02309607]
[1769455974627,0.01133979,88185.0,88167.0,0.02309607]
[1769455974628,0.03,88176.0,88167.0,0.02309607]
[1769455975727,0.03,88175.0,88167.0,0.02309607]
[1769455976672,0.03,88174.0,88167.0,0.02309607]
[1769455976903,0.099,88186.0,88168.0,0.6848767]
[1769455977081,0.099,88186.0,88169.0,0.6848767]
[1769455977281,0.05669661,88189.0,88167.0,0.0002447]
[1769455977484,0.06803696,88188.0,88169.0,0.02285137]
[1769455977662,0.03004152,88187.0,88172.0,0.60475566]
[1769455977868,0.03004152,88187.0,88172.0,0.54748599]
[1769455978268,0.22675757,88200.0,88172.0,0.54748599]
[1769455978443,0.17432,88194.0,88175.0,0.02285137]
[1769455978650,0.03,88193.0,88177.0,0.02285137]
[1769455978844,0.04133876,88193.0,88177.0,0.02285137]
[1769455979273,0.03,88193.0,88177.0,0.02285137]
[1769455980318,0.03,88193.0,88170.0,0.37934442]
[1769455980523,0.03,88191.0,88172.0,0.02285137]
[1769455980757,0.28873706,88191.0,88172.0,0.02285137]
[1769455981006,0.28873706,88191.0,88173.0,0.70772807]
[1769455981590,0.28873706,88191.0,88174.0,0.02285137]
[1769455981794,0.28873706,88191.0,88174.0,0.70772807]
[1769455982648,0.28873706,88191.0,88174.0,0.6848767]
[1769455982822,0.28873706,88191.0,88170.0,0.37934442]
[1769455982823,0.03,88190.0,88176.0,0.6848767]
[1769455983028,0.03,88190.0,88179.0,0.02285137]
[1769455983567,0.02319427,88198.0,88179.0,0.02285137]
[1769455983771,0.03,88206.0,88191.0,0.6848767]
[1769455983924,0.03,88206.0,88193.0,0.02285137]
[1769455984129,0.03,88206.0,88194.0,0.70772807]
[1769455984728,0.03,88209.0,88194.0,0.70772807]
[1769455985328,0.03,88209.0,88195.0,0.02285137]
[1769455985671,0.03,88209.0,88196.0,0.6848767]
[1769455985908,0.03,88209.0,88196.0,0.65094757]
[1769455987087,0.03,88208.0,88196.0,0.65094757]
[1769455987635,0.03,88208.0,88190.0,0.37934442]
[1769455987840,0.03,88208.0,88180.0,0.23102114]
[1769455987841,0.03,88206.0,88183.0,0.6848767]
[1769455988044,0.03,88206.0,88186.0,0.02285137]
[1769455988219,0.03,88206.0,88189.0,0.6848767]
[1769455988438,0.03,88204.0,88189.0,0.6848767]
[1769455988822,0.03,88199.0,88189.0,0.6848767]
[1769455989932,0.03,88201.0,88189.0,0.6848767]
[1769455990959,0.03,88200.0,88189.0,0.6848767]
[1769455991973,0.03,88199.0,88189.0,0.6848767]
[1769455993032,0.03,88198.0,88189.0,0.6848767]
[1769455994032,0.03,88197.0,88189.0,0.6848767]
[1769455995046,0.03,88203.0,88189.0,0.6848767]
[1769455996886,0.03,88202.0,88189.0,0.6848767]
[1769455997089,0.03,88199.0,88186.0,9.18e-05]
[1769455997289,0.05319427,88197.0,88186.0,9.18e-05]
[1769455997495,0.03,88195.0,88186.0,9.18e-05]
[1769455997866,0.05319427,88195.0,88186.0,9.18e-05]
[1769455999796,0.03,88199.0,88186.0,9.18e-05]
[1769455999982,0.03,88197.0,88186.0,9.18e-05]
[1769456004630,0.05446399,88197.0,88186.0,9.18e-05]
[1769456005068,0.02446399,88209.0,88188.0,0.662413]
[1769456005292,0.02457299,88216.0,88199.0,0.37934442]
[1769456005627,0.000109,88216.0,88201.0,0.68737928]
[1769456005786,0.030109,88216.0,88201.0,0.662413]
[1769456005966,0.17432,88217.0,88203.0,0.662413]
[1769456006179,0.17415995,88217.0,88203.0,0.662413]
[1769456006377,0.01133555,88218.0,88203.0,0.662413]
[1769456006378,0.06801336,88218.0,88203.0,0.662413]
[1769456006576,0.01133568,88217.0,88203.0,0.662413]
[1769456006797,0.03,88216.0,88203.0,0.662413]
[1769456007000,0.03,88216.0,88202.0,0.02496628]
[1769456008248,0.04133581,88216.0,88202.0,0.02496628]
[1769456009290,0.03,88216.0,88202.0,0.02496628]
[1769456009523,0.03,88216.0,88202.0,0.0246876]
[1769456010001,0.03,88214.0,88202.0,0.0246876]
[1769456010194,0.10910758,88218.0,88202.0,0.0246876]
[1769456010907,0.10910758,88218.0,88202.0,0.6871006]
[1769456011046,0.03,88217.0,88202.0,0.6871006]
[1769456011358,0.03,88217.0,88204.0,0.662413]
[1769456011924,0.03,88216.0,88204.0,0.662413]
[1769456012243,0.03,88203.0,88186.0,0.0002008]
[1769456012490,0.02446399,88201.0,88186.0,0.0002008]
[1769456012641,0.03580172,88201.0,88186.0,0.0002008]
[1769456012828,0.0243039,88201.0,88186.0,0.0002008]
[1769456013028,0.37934442,88200.0,88186.0,0.0002008]
[1769456014108,0.03,88200.0,88186.0,0.0002008]
[1769456014520,0.03,88200.0,88187.0,0.662413]
[1769456014748,0.03,88200.0,88173.0,0.17432]
[1769456014749,0.01134172,88170.0,88162.0,0.0002008]
[1769456014967,0.01134159,88171.0,88162.0,0.0002008]
[1769456014968,0.03,88171.0,88162.0,0.0002008]
[1769456015182,0.03,88171.0,88161.0,0.662413]
[1769456015610,0.02446399,88181.0,88161.0,0.68737928]
[1769456015822,0.01134056,88179.0,88162.0,0.02496628]
[1769456016028,0.14333122,88178.0,88163.0,0.662413]
[1769456016265,0.03,88176.0,88163.0,0.662413]
[1769456016669,0.03,88176.0,88165.0,0.662413]
[1769456016874,0.03,88176.0,88165.0,0.68737928]
[1769456017315,0.03,88175.0,88165.0,0.68737928]
[1769456018342,0.01134044,88180.0,88165.0,0.68737928]
[1769456018343,0.03,88174.0,88165.0,0.68737928]
[1769456018747,0.01133979,88185.0,88166.0,0.02496628]
[1769456018954,0.01133979,88185.0,88160.0,0.37934442]
[1769456018955,0.07469496,88185.0,88167.0,0.68737928]
[1769456019153,0.17549112,88185.0,88167.0,0.68737928]
[1769456019492,0.03,88183.0,88167.0,0.68737928]
[1769456019692,0.04134005,88183.0,88167.0,0.68737928]
[1769456019991,0.03,88183.0,88168.0,0.02496628]
[1769456020152,0.04134005,88183.0,88171.0,0.662413]
[1769456020366,0.05654025,88183.0,88171.0,0.662413]
[1769456020530,0.01134005,88183.0,88171.0,0.662413]
[1769456020739,0.07469496,88185.0,88171.0,0.662413]
[1769456020943,0.06335517,88185.0,88171.0,0.662413]
[1769456021145,0.01133979,88185.0,88171.0,0.662413]
[1769456021354,0.03,88183.0,88171.0,0.662413]
[1769456021563,0.01133992,88184.0,88171.0,0.662413]
[1769456022431,0.03,88182.0,88171.0,0.662413]
[1769456022631,0.03,88178.0,88171.0,0.662413]
[1769456023773,0.03,88177.0,88171.0,0.662413]
[1769456023968,0.01133928,88189.0,88171.0,0.662413]
[1769456024174,0.03580301,88191.0,88172.0,0.02496628]
[1769456024378,0.03580301,88191.0,88170.0,0.37934442]
[1769456024379,0.0002108,88192.0,88175.0,0.662413]
[1769456024669,0.0002108,88192.0,88179.0,0.662413]
[1769456024824,0.0002108,88192.0,88179.0,0.68737928]
[1769456025234,0.03,88191.0,88179.0,0.68737928]
[1769456026229,0.03,88190.0,88179.0,0.68737928]
[1769456027366,0.03,88191.0,88179.0,0.68737928]
[1769456028577,0.0302108,88192.0,88179.0,0.662413]
[1769456028775,0.04133915,88190.0,88179.0,0.662413]
[1769456028985,0.42076482,88190.0,88175.0,0.6498976]
[1769456029188,0.49736401,88190.0,88175.0,0.6498976]
[1769456029442,0.03,88188.0,88175.0,0.6498976]
[1769456030559,0.03,88187.0,88175.0,0.6498976]
[1769456031546,0.03,88186.0,88175.0,0.6498976]
[1769456032676,0.03,88185.0,88175.0,0.6498976]
[1769456032876,0.01133902,88191.0,88175.0,0.6498976]
[1769456033119,0.02460848,88191.0,88175.0,0.6498976]
[1769456033902,0.03,88190.0,88175.0,0.6498976]
[1769456036222,0.03,88188.0,88175.0,0.6498976]
[1769456037238,0.03,88187.0,88175.0,0.6498976]
[1769456038320,0.03,88186.0,88175.0,0.6498976]
[1769456039896,0.06803755,88187.0,88175.0,0.6498976]
[1769456040293,0.03,88187.0,88175.0,0.6498976]
[1769456040822,0.04133953,88187.0,88175.0,0.6498976]
[1769456041044,0.03,88187.0,88175.0,0.6498976]
[1769456041252,0.03,88186.0,88175.0,0.6498976]
[1769456041437,0.03,88186.0,88170.0,0.0454]
[1769456041438,0.03,88186.0,88171.0,0.6498976]
[1769456041706,0.20441615,88190.0,88171.0,0.6498976]
[1769456041885,0.06824448,88192.0,88170.0,0.42482567]
[1769456041886,0.01154969,88192.0,88173.0,0.67395438]
[1769456042112,0.18128923,88191.0,88173.0,0.67395438]
[1769456042271,0.03,88189.0,88173.0,0.67395438]
[1769456042667,0.04133928,88189.0,88173.0,0.67395438]
[1769456042875,0.03,88189.0,88173.0,0.67395438]
[1769456043277,0.03,88188.0,88173.0,0.67395438]
[1769456044471,0.03,88187.0,88173.0,0.6498976]
[1769456044642,0.03,88187.0,88175.0,0.6498976]
[1769456045305,0.03,88187.0,88175.0,0.6486976]
[1769456045699,0.03,88189.0,88175.0,0.6486976]
[1769456045875,0.03,88187.0,88175.0,0.6486976]
[1769456046426,0.06803535,88191.0,88175.0,0.6486976]
[1769456046636,0.12476316,88190.0,88175.0,0.6486976]
[1769456046838,0.11342401,88189.0,88175.0,0.6486976]
[1769456047129,0.11342401,88189.0,88170.0,0.42482567]
[1769456047130,0.03,88188.0,88179.0,0.40348245]
[1769456047369,0.03,88188.0,88180.0,0.67395438]
[1769456048174,0.03,88187.0,88180.0,0.67395438]
[1769456049112,0.04133902,88191.0,88179.0,0.17432]
[1769456049291,0.03,88189.0,88179.0,0.17432]
[1769456049508,0.03,88187.0,88179.0,0.17432]
[1769456050362,0.02460848,88191.0,88179.0,0.17432]
[1769456050586,0.03,88189.0,88179.0,0.17432]
[1769456051529,0.03,88196.0,88179.0,0.19837678]
[1769456051724,0.03,88194.0,88179.0,0.19837678]
[1769456051943,0.03,88192.0,88179.0,0.19837678]
[1769456052133,0.03,88190.0,88179.0,0.19837678]
[1769456052363,0.09045057,88203.0,88180.0,0.37942567]
[1769456052534,0.09045057,88203.0,88179.0,0.17432]
[1769456052535,0.0002901,88210.0,88189.0,0.02405678]
[1769456052736,0.0002901,88210.0,88202.0,0.02405678]
[1769456053081,0.00167574,88226.0,88206.0,0.02405678]
[1769456053295,0.03,88225.0,88208.0,0.02405678]
[1769456053504,0.129,88225.0,88208.0,0.02405678]
[1769456053732,0.03,88223.0,88208.0,0.02405678]
[1769456054699,0.03,88224.0,88208.0,0.02405678]
[1769456054903,0.03,88224.0,88208.0,0.6498976]
[1769456055128,0.03,88224.0,88209.0,0.02405678]
[1769456055537,0.03,88224.0,88210.0,0.6498976]
[1769456055868,0.03,88225.0,88210.0,0.6498976]
[1769456056070,0.0002901,88227.0,88212.0,0.6498976]
[1769456056206,0.46233886,88243.0,88219.0,0.6498976]
[1769456056405,0.0002901,88245.0,88230.0,0.37942567]
[1769456056406,0.03173901,88240.0,88230.0,0.37942567]
[1769456056659,0.03173901,88240.0,88220.0,0.17432]
[1769456056660,0.03173901,88240.0,88227.0,0.17432]
[1769456056987,0.03,88239.0,88228.0,0.67395438]
[1769456057118,0.03,88239.0,88227.0,0.17432]
[1769456057119,0.03,88239.0,88232.0,0.02405678]
[1769456057325,0.0002901,88245.0,88236.0,0.02405678]
[1769456057946,0.0002901,88245.0,88230.0,0.37942567]
[1769456057947,0.0302901,88245.0,88237.0,0.6498976]
[1769456058143,0.0302901,88245.0,88237.0,0.67395438]
[1769456058564,0.0302901,88245.0,88237.0,0.6498976]
[1769456058765,0.03,88244.0,88238.0,0.6300197]
[1769456059145,0.03,88244.0,88241.0,0.02401289]
[1769456059676,0.03,88244.0,88241.0,0.69425859]
[1769456059883,0.0002901,88245.0,88227.0,0.17432]
[1769456060086,0.03,88240.0,88231.0,0.02436481]
[1769456060311,0.03,88240.0,88232.0,0.69461051]
[1769456060688,0.03,88240.0,88233.0,0.02436481]
[1769456060891,0.03,88240.0,88233.0,0.69461051]
[1769456061089,0.03,88239.0,88233.0,0.69461051]
[1769456062256,0.0002901,88245.0,88234.0,0.6702457]
[1769456062415,0.0002901,88245.0,88236.0,0.6702457]
[1769456062827,0.01162,88262.0,88237.0,0.6702457]
[1769456063033,0.01162,88262.0,88227.0,0.17432]
[1769456063034,0.42075583,88260.0,88242.0,0.69461051]
[1769456063279,0.04133041,88258.0,88242.0,0.69461051]
[1769456063473,0.03,88258.0,88242.0,0.69461051]
[1769456064123,0.0300918,88258.0,88242.0,0.69461051]
[1769456065811,0.03,88257.0,88244.0,0.6702457]
[1769456065958,0.03,88257.0,88244.0,0.69461051]
[1769456066159,0.0300918,88257.0,88244.0,0.69461051]
[1769456066691,0.03,88256.0,88244.0,0.69461051]
[1769456067215,0.0300918,88256.0,88244.0,0.69461051]
[1769456067441,0.0300918,88256.0,88245.0,0.02436481]
[1769456067670,0.0300918,88256.0,88248.0,0.6702457]
[1769456067899,0.03,88255.0,88248.0,0.69461051]
[1769456068331,0.0300918,88255.0,88248.0,0.69461051]
[1769456068952,0.03,88254.0,88248.0,0.69461051]
[1769456069183,0.0300918,88254.0,88248.0,0.69461051]
[1769456070029,0.0300918,88254.0,88248.0,0.68461051]
[1769456070030,0.03,88253.0,88248.0,0.68461051]
[1769456070237,0.0300918,88253.0,88248.0,0.68461051]
[1769456070442,0.0300918,88253.0,88249.0,0.02436481]
[1769456070645,0.0300918,88253.0,88250.0,0.6702457]
[1769456071086,0.03,88252.0,88250.0,0.6702457]
[1769456071255,0.099,88264.0,88250.0,0.6702457]
[1769456071856,0.011329,88269.0,88252.0,0.6702457]
[1769456072193,0.03,88268.0,88252.0,0.69461051]
[1769456073042,0.01132874,88271.0,88252.0,0.69461051]
[1769456073043,0.03,88267.0,88252.0,0.69461051]
[1769456074038,0.03,88268.0,88252.0,0.69461051]
[1769456075077,0.03,88267.0,88252.0,0.69461051]
[1769456075248,0.03,88267.0,88255.0,0.02436481]
[1769456075488,0.0003101,88272.0,88257.0,0.69461051]
[1769456075876,0.0994,88276.0,88262.0,0.02436481]
[1769456075877,0.0004,88276.0,88262.0,0.02436481]
[1769456076089,0.0004,88276.0,88268.0,0.6702457]
[1769456076513,0.0002399,88276.0,88268.0,0.6702457]
[1769456077458,0.0002399,88276.0,88266.0,0.02436481]
[1769456077659,0.0002399,88276.0,88262.0,0.8444857]
[1769456078317,0.03,88271.0,88240.0,0.37942567]
[1769456078439,0.03,88269.0,88258.0,0.0453512]
[1769456078638,0.12191579,88271.0,88258.0,0.0453512]
[1769456078846,0.09930699,88271.0,88258.0,0.0453512]
[1769456079049,0.03,88267.0,88258.0,0.0453512]
[1769456079251,0.0226088,88267.0,88258.0,0.0453512]
[1769456079884,0.0113299,88262.0,88258.0,0.0453512]
[1769456080088,0.03,88263.0,88248.0,0.02436481]
[1769456080303,0.03,88263.0,88248.0,0.69461051]
[1769456081070,0.03,88262.0,88248.0,0.69461051]
[1769456082045,0.03,88266.0,88248.0,0.69461051]
[1769456082240,0.03,88266.0,88250.0,0.40379048]
[1769456082447,0.03,88266.0,88251.0,0.6702457]
[1769456082633,0.0226088,88267.0,88251.0,0.69461051]
[1769456082833,0.02244867,88267.0,88251.0,0.69461051]
[1769456083715,0.02244867,88267.0,88252.0,0.69461051]
[1769456084482,0.0526088,88272.0,88252.0,0.69461051]
[1769456084680,0.0526088,88272.0,88254.0,0.6702457]
[1769456084887,0.0526088,88272.0,88255.0,0.69461051]
[1769456085290,0.011568,88276.0,88255.0,0.69461051]
[1769456085487,0.03,88278.0,88255.0,0.02436481]
[1769456085714,0.03099307,88269.0,88255.0,0.02436481]
[1769456085891,0.00067281,88269.0,88255.0,0.02436481]
[1769456086093,0.01200181,88269.0,88255.0,0.02436481]
[1769456087025,0.00067281,88269.0,88255.0,0.02436481]
[1769456087581,0.03067281,88269.0,88255.0,0.02436481]
[1769456089106,0.03,88268.0,88255.0,0.02436481]
[1769456089311,0.03,88268.0,88258.0,0.63409614]
[1769456089535,0.01132708,88284.0,88265.0,0.63409614]
[1769456089679,0.11310202,88283.0,88266.0,0.02403336]
[1769456089893,0.0120031,88284.0,88266.0,0.02126094]
[1769456090101,0.03,88282.0,88266.0,0.01825971]
[1769456090486,0.03,88282.0,88269.0,0.0235263]
[1769456091006,0.03,88281.0,88269.0,0.0235263]
[1769456091210,0.03,88279.0,88269.0,1e-08]
[1769456091432,0.03,88279.0,88268.0,0.63409614]
[1769456091848,0.03,88279.0,88264.0,0.0235263]
[1769456092269,0.03,88279.0,88264.0,0.65762244]
[1769456092926,0.03,88279.0,88264.0,0.0235263]
[1769456093124,0.03,88277.0,88264.0,0.0235263]
[1769456093649,0.03,88275.0,88264.0,0.0235263]
[1769456094281,0.04132823,88275.0,88264.0,0.0235263]
[1769456094499,0.03,88275.0,88260.0,0.63409614]
[1769456095025,0.03,88274.0,88260.0,0.65762244]
[1769456095212,0.01132797,88277.0,88260.0,0.65762244]
[1769456095456,0.1131881,88276.0,88260.0,0.65762244]
[1769456095657,0.37880161,88280.0,88260.0,0.63409614]
[1769456095858,0.02489957,88278.0,88260.0,0.63409614]
[1769456096066,0.03,88276.0,88260.0,0.63409614]
[1769456096267,0.03,88276.0,88260.0,0.65762244]
[1769456097102,0.03,88275.0,88260.0,0.65762244]
[1769456098187,0.02489957,88278.0,88260.0,0.65762244]
[1769456098188,0.03,88274.0,88260.0,0.65762244]
[1769456099168,0.03,88277.0,88260.0,0.65762244]
[1769456099385,0.03,88275.0,88260.0,0.65762244]
[1769456100175,0.03,88273.0,88260.0,0.65762244]
[1769456100377,0.02489957,88278.0,88260.0,0.65762244]
[1769456100596,0.11326422,88277.0,88260.0,0.65762244]
[1769456100801,0.02489957,88278.0,88260.0,0.63409614]
[1769456100802,0.11326422,88276.0,88260.0,0.63409614]
[1769456101112,0.00067602,88268.0,88243.0,0.63409614]
[1769456101279,0.03,88266.0,88245.0,0.65762244]
[1769456101502,0.03,88259.0,88245.0,0.65762244]
[1769456101701,0.09054839,88269.0,88237.0,0.83178244]
[1769456101928,0.09054839,88269.0,88240.0,0.37880161]
[1769456101929,0.02422355,88259.0,88240.0,0.37880161]
[1769456102180,0.02406341,88259.0,88242.0,0.0235263]
[1769456102382,0.02390325,88259.0,88243.0,0.65762244]
[1769456102789,0.03,88258.0,88243.0,0.65762244]
[1769456103517,0.03,88258.0,88244.0,0.0235263]
[1769456103738,0.03,88258.0,88245.0,0.65762244]
[1769456103990,0.03,88257.0,88245.0,0.65762244]
[1769456104969,0.37880161,88270.0,88245.0,0.65762244]
[1769456104970,0.03,88256.0,88245.0,0.65762244]
[1769456105671,0.03,88256.0,88238.0,0.0235263]
[1769456105875,0.00051749,88258.0,88240.0,0.63409614]
[1769456106075,0.03,88255.0,88240.0,0.63409614]
[1769456106291,0.37880161,88260.0,88240.0,0.65762244]
[1769456106495,0.00051749,88266.0,88241.0,0.65762244]
[1769456106702,0.37880161,88260.0,88241.0,0.65762244]
[1769456107113,0.05422355,88259.0,88241.0,0.65762244]
[1769456107506,0.00051749,88258.0,88241.0,0.65762244]
[1769456108577,0.099,88249.0,88234.0,0.04536]
[1769456108788,0.37880161,88244.0,88234.0,0.04536]
[1769456108993,0.03,88241.0,88226.0,0.0235263]
[1769456109418,0.05422355,88241.0,88225.0,0.1744701]
[1769456109651,0.37880161,88240.0,88225.0,0.0003101]
[1769456109861,0.03,88233.0,88225.0,0.0003101]
[1769456110529,0.03,88227.0,88225.0,0.0003101]
[1769456110949,0.03,88227.0,88210.0,0.63409614]
[1769456110950,0.03,88227.0,88210.0,0.65762244]
[1769456111162,0.03,88227.0,88210.0,0.0235263]
[1769456111370,0.03,88225.0,88210.0,0.0235263]
[1769456111573,0.03,88225.0,88210.0,0.65762244]
[1769456112216,0.37880161,88230.0,88207.0,0.0003101]
[1769456112217,0.03,88219.0,88207.0,0.0003101]
[1769456112411,0.03,88214.0,88207.0,0.0003101]
[1769456113432,0.03,88213.0,88207.0,0.0003101]
[1769456114493,0.03,88212.0,88207.0,0.0003101]
[1769456114923,0.03,88210.0,88195.0,0.0235263]
[1769456115572,0.03,88210.0,88191.0,0.63409614]
[1769456115573,0.01133722,88205.0,88191.0,0.63409614]
[1769456115780,0.03,88201.0,88189.0,0.1742]
[1769456115997,0.03,88199.0,88190.0,0.0235263]
[1769456116216,0.03,88199.0,88187.0,0.04536]
[1769456116624,0.03,88199.0,88188.0,0.63429984]
[1769456116851,0.03,88199.0,88190.0,0.63409614]
[1769456117072,0.03,88198.0,88190.0,0.65762244]
[1769456117731,0.01133542,88219.0,88198.0,0.0003101]
[1769456117941,0.17424,88218.0,88201.0,0.61081614]
[1769456118178,0.03,88217.0,88201.0,0.63359476]
[1769456119058,0.04133568,88217.0,88201.0,0.63359476]
[1769456119259,0.04133606,88214.0,88201.0,0.63359476]
[1769456119920,0.04133606,88214.0,88198.0,0.0002037]
[1769456119921,0.18747766,88214.0,88198.0,0.0002037]
[1769456120546,0.04133658,88210.0,88198.0,0.0002037]
[1769456120765,0.03,88210.0,88198.0,0.0002037]
[1769456120970,0.05668034,88214.0,88198.0,0.0002037]
[1769456121197,0.01133658,88210.0,88198.0,0.0002037]
[1769456121837,0.03,88214.0,88198.0,0.0002037]
[1769456122256,0.03,88214.0,88198.0,0.02472892]
[1769456122464,0.03,88214.0,88199.0,0.65835818]
[1769456122668,0.03,88211.0,88199.0,0.65835818]
[1769456122869,0.03,88211.0,88198.0,0.02472892]
[1769456123943,0.03,88212.0,88198.0,0.02472892]
[1769456125097,0.03,88213.0,88198.0,0.02472892]
[1769456125725,0.03,88213.0,88199.0,0.65835818]
[1769456125937,0.03,88214.0,88199.0,0.6828834]
[1769456130840,0.03,88213.0,88199.0,0.65835818]
[1769456131034,0.03,88213.0,88198.0,0.0002037]
[1769456131035,0.03,88213.0,88202.0,0.02452522]
[1769456131243,0.03,88213.0,88204.0,0.02452522]
[1769456131620,0.03,88213.0,88206.0,0.02452522]
[1769456131822,0.03,88212.0,88207.0,0.65835818]
[1769456132027,0.03,88212.0,88210.0,0.02452522]
[1769456132275,0.03,88212.0,88198.0,0.0002037]
[1769456132276,0.03,88212.0,88211.0,0.65835818]
[1769456132447,0.03,88212.0,88211.0,0.6828834]
[1769456132823,0.03,88224.0,88211.0,0.6828834]
[1769456133894,0.02329969,88238.0,88212.0,0.02452522]
[1769456134106,0.02329969,88238.0,88216.0,0.02452522]
[1769456134322,0.0001184,88247.0,88219.0,0.65835818]
[1769456134535,0.01133247,88242.0,88223.0,0.65835818]
[1769456134734,0.06799433,88243.0,88226.0,0.02452522]
[1769456134943,0.03,88241.0,88227.0,0.6828834]
[1769456135173,0.03,88241.0,88229.0,0.65835818]
[1769456135390,0.03,88241.0,88230.0,0.02452522]
[1769456136031,0.03,88240.0,88230.0,0.6828834]